fUSD/lending_fUSD_20250105
["ID","MTS","AMOUNT","RATE_DAILY","PERIOD"]
[347756953,1736094665902,-500.0,0.0001041,2]
[347756954,1736094665912,-580.42,0.0001041,2]
[347756955,1736094665920,-500.0,0.0001041,2]
[347756956,1736094665929,-500.0,0.0001041,2]
[347756957,1736094665939,-500.0,0.0001041,2]
[347756958,1736094665948,-520.75,0.0001041,2]
[347756959,1736094665958,-500.0,0.0001041,2]
[347756960,1736094665967,-500.0,0.0001041,2]
[347756961,1736094665977,-1689.29,0.0001041,2]
[347756962,1736094665987,-565.23,0.0001041,2]
[347756963,1736094665997,-589.8,0.0001041,2]
[347756964,1736094666007,-683.29,0.0001041,2]
[347756965,1736094666016,-500.0,0.0001041,2]
[347756966,1736094666026,-1085.9,0.0001041,2]
[347756967,1736094666035,-500.0,0.0001041,2]
[347756968,1736094666045,-500.0,0.0001041,2]
[347756969,1736094666054,-741.9,0.0001041,2]
[347756970,1736094666064,-1035.34,0.0001041,2]
[347756971,1736094666074,-500.0,0.0001041,2]
[347756972,1736094666084,-500.0,0.0001041,2]
[347756973,1736094666094,-500.0,0.0001041,2]
[347756974,1736094666103,-500.0,0.0001041,2]
[347756975,1736094666113,-500.0,0.0001041,2]
[347756976,1736094666122,-500.0,0.0001041,2]
[347756977,1736094666132,-500.0,0.0001041,2]
[347756978,1736094666141,-1834.08,0.0001041,2]
[347756979,1736094666151,-500.0,0.0001041,2]
[347756980,1736094666161,-552.82,0.0001041,2]
[347756981,1736094666171,-731.46,0.0001041,2]
[347756982,1736094666180,-500.0,0.0001041,2]
[347756983,1736094666189,-500.0,0.0001041,2]
[347756984,1736094666199,-904.93,0.0001041,2]
[347756985,1736094666209,-557.27,0.0001041,2]
[347756986,1736094666220,-793.93,0.0001041,2]
[347756987,1736094666230,-500.0,0.0001041,2]
[347756988,1736094666240,-811.3,0.0001041,2]
[347756989,1736094666249,-527.7,0.0001041,2]
[347756990,1736094666259,-500.0,0.0001041,2]
[347756991,1736094666268,-500.0,0.0001041,2]
[347756992,1736094666277,-1036.67,0.0001041,2]
[347756993,1736094666286,-509.44,0.0001041,2]
[347756994,1736094666295,-500.0,0.0001041,2]
[347756995,1736094666305,-500.0,0.0001041,2]
[347756996,1736094666315,-1405.71,0.0001041,2]
[347756997,1736094666325,-1347.13,0.0001041,2]
[347756998,1736094666335,-1532.82,0.0001041,2]
[347756999,1736094666345,-500.0,0.0001041,2]
[347757000,1736094666354,-500.0,0.0001041,2]
[347757001,1736094666364,-2813.87,0.0001041,2]
[347757002,1736094666373,-799.48,0.0001041,2]
[347757003,1736094666383,-605.75,0.0001041,2]
[347757004,1736094666393,-500.0,0.0001041,2]
[347757005,1736094666402,-659.28,0.0001041,2]
[347757006,1736094666415,-2763.67,0.0001041,2]
[347757007,1736094666425,-500.0,0.0001041,2]
[347757008,1736094666435,-500.0,0.0001041,2]
[347757009,1736094666445,-770.84,0.0001041,2]
[347757010,1736094666458,-589.68,0.0001041,2]
[347757011,1736094666468,-500.0,0.0001041,2]
[347757012,1736094666477,-500.0,0.0001041,2]
[347757013,1736094666487,-3068.98,0.0001041,2]
[347757014,1736094666498,-633.08,0.0001041,2]
[347757015,1736094666508,-779.8,0.0001041,2]
[347757016,1736094666518,-964.94,0.0001041,2]
[347757017,1736094666529,-1712.37,0.0001041,2]
[347757018,1736094666538,-848.67,0.0001041,2]
[347757019,1736094666548,-2292.04,0.0001041,2]
[347757020,1736094666558,-500.0,0.0001041,2]
[347757021,1736094666568,-500.0,0.0001041,2]
[347757022,1736094666577,-504.97,0.0001041,2]
[347757023,1736094666586,-769.22,0.0001041,2]
[347757024,1736094666596,-698.27,0.0001041,2]
[347757025,1736094666606,-800.13,0.0001041,2]
[347757026,1736094666616,-1071.25,0.0001041,2]
[347757027,1736094666625,-1626.49,0.0001041,2]
[347757028,1736094666635,-500.0,0.0001041,2]
[347757029,1736094666645,-1143.16,0.0001041,2]
[347757030,1736094666655,-1089.62,0.0001041,2]
[347757031,1736094666665,-565.51,0.0001041,2]
[347757032,1736094666675,-972.29,0.0001041,2]
[347757033,1736094666684,-1044.39,0.0001041,2]
[347757034,1736094666694,-500.0,0.0001041,2]
[347757035,1736094666703,-500.18,0.0001041,2]
[347757036,1736094666713,-508.44,0.0001041,2]
[347757037,1736094666722,-500.0,0.0001041,2]
[347757038,1736094666731,-2154.529193,0.0001041,2]
[347757039,1736094666741,-573.87,0.0001041,2]
[347757040,1736094666750,-3065.2,0.0001041,2]
[347757041,1736094666760,-1194.71,0.0001041,2]
[347757042,1736094666769,-585.92,0.0001041,2]
[347757043,1736094666779,-500.0,0.0001041,2]
[347757044,1736094666789,-765.52,0.0001041,2]
[347757045,1736094666800,-640.34,0.0001041,2]
[347757046,1736094666810,-3836.73,0.0001041,2]
[347757047,1736094666820,-633.45,0.0001041,2]
[347757048,1736094666830,-1291.16,0.0001041,2]
[347757049,1736094666840,-1192.98,0.0001041,2]
[347757050,1736094666850,-733.94,0.0001041,2]
[347757051,1736094666860,-2011.44575,0.0001041,2]
[347757052,1736094666869,-668.19,0.0001041,2]
[347757053,1736094666880,-722.24,0.0001041,2]
[347757054,1736094666890,-525.52,0.0001041,2]
[347757055,1736094666900,-2191.22,0.0001041,2]
[347757056,1736094666910,-1871.54,0.0001041,2]
[347757057,1736094666920,-3576.39,0.0001041,2]
[347757058,1736094666931,-1429.21,0.0001041,2]
[347757059,1736094666940,-6128.46,0.0001041,2]
[347757060,1736094666950,-554.84,0.0001041,2]
[347757061,1736094666961,-1747.17,0.0001041,2]
[347757062,1736094666971,-500.0,0.0001041,2]
[347757063,1736094666981,-1657.86,0.0001041,2]
[347757064,1736094666991,-813.74,0.0001041,2]
[347757065,1736094667002,-515.2,0.0001041,2]
[347757066,1736094667011,-3771.13,0.0001041,2]
[347757067,1736094667021,-500.0,0.0001041,2]
[347757068,1736094667031,-823.18,0.0001041,2]
[347757069,1736094667040,-902.42,0.0001041,2]
[347757070,1736094667050,-795.93,0.0001041,2]
[347757071,1736094667060,-500.0,0.0001041,2]
[347757072,1736094667069,-710.7,0.0001041,2]
[347757073,1736094667079,-1012.76,0.0001041,2]
[347757074,1736094667089,-890.9,0.0001041,2]
[347757075,1736094667099,-1433.4,0.0001041,2]
[347757076,1736094667109,-500.0,0.0001041,2]
[347757077,1736094667119,-5091.48,0.0001041,2]
[347757078,1736094667128,-4235.77,0.0001041,2]
[347757079,1736094667138,-1053.35,0.0001041,2]
[347757080,1736094667149,-992.85,0.0001041,2]
[347757081,1736094667164,-624.79,0.0001041,2]
[347757082,1736094667174,-633.76,0.0001041,2]
[347757083,1736094667184,-578.47,0.0001041,2]
[347757084,1736094667194,-2200.96,0.0001041,2]
[347757085,1736094667205,-1537.22,0.0001041,2]
[347757086,1736094667216,-900.08,0.0001041,2]
[347757087,1736094667226,-4458.65,0.0001041,2]
[347757088,1736094667239,-4463.52,0.0001041,2]
[347757089,1736094667250,-1934.39,0.0001041,2]
[347757090,1736094667260,-1315.15,0.0001041,2]
[347757091,1736094667270,-546.5,0.0001041,2]
[347757092,1736094667280,-510.63,0.0001041,2]
[347757093,1736094667290,-500.0,0.0001041,2]
[347757094,1736094667299,-748.91,0.0001041,2]
[347757095,1736094667310,-3147.69,0.0001041,2]
[347757096,1736094667321,-500.0,0.0001041,2]
[347757097,1736094667331,-571.68,0.0001041,2]
[347757098,1736094667342,-500.0,0.0001041,2]
[347757099,1736094667352,-519.79,0.0001041,2]
[347757100,1736094667362,-857.37,0.0001041,2]
[347757101,1736094667372,-772.45,0.0001041,2]
[347757102,1736094667383,-2261.04,0.0001041,2]
[347757103,1736094667393,-500.0,0.0001041,2]
[347757104,1736094667403,-574.97,0.0001041,2]
[347757105,1736094667414,-1517.49,0.0001041,2]
[347757106,1736094667424,-1136.66,0.0001041,2]
[347757107,1736094667436,-601.24,0.0001041,2]
[347757108,1736094667446,-3679.45,0.0001041,2]
[347757109,1736094667459,-150.925515,0.0001041,2]
[347757110,1736094667469,-801.92,0.0001041,2]
[347757111,1736094667478,-2296.67,0.0001041,2]
[347757112,1736094667489,-511.65,0.0001041,2]
[347757113,1736094667499,-716.67,0.0001041,2]
[347757114,1736094667512,-500.0,0.0001041,2]
[347757115,1736094667522,-1000.95,0.0001041,2]
[347757116,1736094667531,-2823.47,0.0001041,2]
[347757117,1736094667542,-869.41,0.0001041,2]
[347757118,1736094667551,-702.57,0.0001041,2]
[347757119,1736094667560,-1961.5,0.0001041,2]
[347757120,1736094667570,-1511.92,0.0001041,2]
[347757121,1736094667580,-980.35,0.0001041,2]
[347757122,1736094667590,-1573.26,0.0001041,2]
[347757123,1736094667601,-716.72,0.0001041,2]
[347757124,1736094667611,-3227.6,0.0001041,2]
[347757125,1736094667621,-685.49,0.0001041,2]
[347757126,1736094667631,-812.36,0.0001041,2]
[347757127,1736094667641,-1820.78,0.0001041,2]
[347757128,1736094667651,-2219.13,0.0001041,2]
[347757129,1736094667661,-574.8,0.0001041,2]
[347757130,1736094667671,-826.26,0.0001041,2]
[347757131,1736094667681,-1688.51,0.0001041,2]
[347757132,1736094667691,-1052.05,0.0001041,2]
[347757133,1736094667702,-3518.04,0.0001041,2]
[347757134,1736094667713,-659.66,0.0001041,2]
[347757135,1736094667724,-500.0,0.0001041,2]
[347757136,1736094667735,-1016.28,0.0001041,2]
[347757137,1736094667744,-500.0,0.0001041,2]
[347757138,1736094667756,-500.0,0.0001041,2]
[347757139,1736094667767,-588.33,0.0001041,2]
[347757140,1736094667777,-753.31,0.0001041,2]
[347757141,1736094667787,-500.0,0.0001041,2]
[347757142,1736094667798,-2262.5,0.0001041,2]
[347757143,1736094667808,-500.0,0.0001041,2]
[347757144,1736094667818,-6438.35,0.0001041,2]
[347757145,1736094667828,-150.133036,0.0001041,2]
[347757146,1736094667839,-874.96,0.0001041,2]
[347757147,1736094667849,-913.17,0.0001041,2]
[347757148,1736094667859,-919.19,0.0001041,2]
[347757149,1736094667869,-500.0,0.0001041,2]
[347757150,1736094667878,-1116.37,0.0001041,2]
[347757151,1736094667889,-648.72,0.0001041,2]
[347757152,1736094667900,-1766.84,0.0001041,2]
[347757153,1736094667911,-758.57,0.0001041,2]
[347757154,1736094667922,-506.41,0.0001041,2]
[347757155,1736094667932,-151.072624,0.0001041,2]
[347757156,1736094667942,-1972.52,0.0001041,2]
[347757157,1736094667953,-863.83,0.0001041,2]
[347757158,1736094667964,-500.0,0.0001041,2]
[347757159,1736094667975,-500.0,0.0001041,2]
[347757160,1736094667985,-500.0,0.0001041,2]
[347757161,1736094667995,-500.0,0.0001041,2]
[347757162,1736094668006,-500.0,0.0001041,2]
[347757163,1736094668015,-962.38,0.0001041,2]
[347757164,1736094668026,-1056.87,0.0001041,2]
[347757165,1736094668036,-500.0,0.0001041,2]
[347757166,1736094668046,-1324.44,0.0001041,2]
[347757167,1736094668056,-727.28,0.0001041,2]
[347757168,1736094668068,-1975.91,0.0001041,2]
[347757169,1736094668078,-680.78,0.0001041,2]
[347757170,1736094668088,-1645.11,0.0001041,2]
[347757171,1736094668097,-500.0,0.0001041,2]
[347757172,1736094668107,-2676.27,0.0001041,2]
[347757173,1736094668117,-500.0,0.0001041,2]
[347757174,1736094668127,-2325.35,0.00010412,2]
[347757175,1736094668139,-150.0,0.00010412,2]
[347757176,1736094668150,-150.0,0.00010421,2]
[347757177,1736094668160,-150.0,0.00010429,2]
[347757178,1736094668170,-150.0,0.00010439,2]
[347757179,1736094668181,-1700.0,0.00010442,2]
[347757180,1736094668192,-500.0,0.00010442,2]
[347757181,1736094668202,-150.0,0.00010466,2]
[347757182,1736094668212,-150.0,0.00010494,2]
[347757183,1736094668222,-150.0,0.00010505,2]
[347757184,1736094668233,-150.0,0.00010521,2]
[347757185,1736094668243,-150.0,0.00010539,2]
[347757186,1736094668254,-150.0,0.00010548,2]
[347757187,1736094668264,-150.0,0.00010576,2]
[347757188,1736094668274,-150.0,0.00010581,2]
[347757189,1736094668284,-150.0,0.00010603,2]
[347757190,1736094668295,-208.0,0.0001061,2]
[347757191,1736094668305,-150.0,0.0001063,2]
[347757192,1736094668316,-151.24,0.00010636,2]
[347757193,1736094668329,-225.78117896,0.00010658,2]
[347757194,1736094668339,-186.45787987,0.00010658,2]
[347757195,1736094668349,-150.0,0.00010658,2]
[347757196,1736094668359,-237.18291264,0.00010658,2]
[347757197,1736094668372,-500.0,0.00010684,2]
[347757198,1736094668381,-385.05663126,0.00010684,2]
[347757199,1736094668391,-441.76476657,0.00010684,2]
[347757200,1736094668403,-500.0,0.00010684,2]
[347757201,1736094668418,-1230.7,0.00010684,2]
[347757202,1736094668428,-500.0,0.00010684,2]
[347757203,1736094668439,-599.16,0.00010684,2]
[347757204,1736094668449,-500.0,0.00010684,2]
[347757205,1736094668462,-500.0,0.00010684,2]
[347757206,1736094668472,-500.0,0.00010684,2]
[347757207,1736094668482,-500.0,0.00010684,2]
[347757208,1736094668494,-500.0,0.00010684,2]
[347757209,1736094668504,-500.0,0.00010684,2]
[347757210,1736094668514,-500.0,0.00010684,2]
[347757211,1736094668524,-500.0,0.00010684,2]
[347757212,1736094668534,-1808.48,0.00010684,2]
[347757213,1736094668546,-500.0,0.00010684,2]
[347757214,1736094668556,-447.47,0.00010684,2]
[347757215,1736094668567,-500.0,0.00010684,2]
[347757216,1736094668577,-500.0,0.00010684,2]
[347757217,1736094668587,-716.91,0.00010684,2]
[347757218,1736094668597,-500.0,0.00010684,2]
[347757219,1736094668608,-1425.76,0.00010684,2]
[347757220,1736094668618,-500.0,0.00010684,2]
[347757221,1736094668629,-1615.98,0.00010684,2]
[347757222,1736094668639,-500.0,0.00010684,2]
[347757223,1736094668649,-500.0,0.00010684,2]
[347757224,1736094668658,-500.0,0.00010684,2]
[347757225,1736094668669,-500.0,0.00010684,2]
[347757226,1736094668679,-500.0,0.00010684,2]
[347757227,1736094668689,-500.0,0.00010684,2]
[347757228,1736094668700,-2103.76,0.00010684,2]
[347757229,1736094668710,-548.94,0.00010684,2]
[347757230,1736094668720,-622.54,0.00010684,2]
[347757231,1736094668730,-588.68,0.00010684,2]
[347757232,1736094668740,-856.59,0.00010684,2]
[347757233,1736094668750,-500.0,0.00010684,2]
[347757234,1736094668760,-699.56,0.00010684,2]
[347757235,1736094668770,-500.0,0.00010684,2]
[347757236,1736094668780,-551.19,0.00010684,2]
[347757237,1736094668789,-1746.71,0.00010684,2]
[347757238,1736094668799,-500.0,0.00010684,2]
[347757239,1736094668809,-500.0,0.00010684,2]
[347757240,1736094668820,-742.17,0.00010684,2]
[347757241,1736094668830,-608.14,0.00010684,2]
[347757242,1736094668840,-558.83,0.00010684,2]
[347757243,1736094668849,-500.0,0.00010684,2]
[347757244,1736094668858,-812.77,0.00010684,2]
[347757245,1736094668868,-569.03,0.00010684,2]
[347757246,1736094668878,-500.0,0.00010684,2]
[347757247,1736094668887,-500.0,0.00010684,2]
[347757248,1736094668898,-500.0,0.00010684,2]
[347757249,1736094668907,-661.71,0.00010684,2]
[347757250,1736094668916,-696.27,0.00010684,2]
[347757251,1736094668926,-687.79,0.00010684,2]
[347757252,1736094668936,-500.0,0.00010684,2]
[347757253,1736094668946,-556.61,0.00010684,2]
[347757254,1736094668956,-942.62,0.00010684,2]
[347757255,1736094668966,-719.4,0.00010684,2]
[347757256,1736094668976,-631.65,0.00010684,2]
[347757257,1736094668987,-832.23,0.00010684,2]
[347757258,1736094668997,-1675.1,0.00010684,2]
[347757259,1736094669006,-5015.81,0.00010684,2]
[347757260,1736094669016,-677.54,0.00010684,2]
[347757261,1736094669027,-543.04,0.00010684,2]
[347757262,1736094669038,-500.0,0.00010684,2]
[347757263,1736094669048,-627.27,0.00010684,2]
[347757264,1736094669058,-500.0,0.00010684,2]
[347757265,1736094669068,-1050.4,0.00010684,2]
[347757266,1736094669079,-500.0,0.00010684,2]
[347757267,1736094669090,-1161.33,0.00010684,2]
[347757268,1736094669101,-500.0,0.00010684,2]
[347757269,1736094669111,-500.0,0.00010684,2]
[347757270,1736094669324,-724.87,0.00010684,2]
[347757271,1736094669371,-500.0,0.00010684,2]
[347757272,1736094669381,-500.0,0.00010684,2]
[347757273,1736094669391,-631.04,0.00010684,2]
[347757274,1736094669400,-500.0,0.00010684,2]
[347757275,1736094669411,-594.95,0.00010684,2]
[347757276,1736094669423,-1113.55,0.00010684,2]
[347757277,1736094669433,-1763.27,0.00010684,2]
[347757278,1736094669442,-500.0,0.00010684,2]
[347757279,1736094669452,-500.0,0.00010684,2]
[347757280,1736094669463,-500.0,0.00010684,2]
[347757281,1736094669472,-752.27,0.00010684,2]
[347757282,1736094669482,-500.0,0.00010684,2]
[347757283,1736094669492,-714.85,0.00010684,2]
[347757284,1736094669502,-816.25,0.00010684,2]
[347757285,1736094669512,-620.8,0.00010684,2]
[347757286,1736094669522,-500.0,0.00010684,2]
[347757287,1736094669532,-621.01,0.00010684,2]
[347757288,1736094669541,-500.0,0.00010684,2]
[347757289,1736094669551,-541.62,0.00010684,2]
[347757290,1736094669561,-601.13,0.00010684,2]
[347757291,1736094669570,-500.0,0.00010684,2]
[347757292,1736094669580,-738.48,0.00010684,2]
[347757293,1736094669590,-500.0,0.00010684,2]
[347757294,1736094669600,-500.0,0.00010684,2]
[347757295,1736094669609,-1683.47,0.00010684,2]
[347757296,1736094669619,-745.35,0.00010684,2]
[347757297,1736094669629,-3134.03,0.00010684,2]
[347757298,1736094669639,-836.0,0.00010684,2]
[347757299,1736094669648,-736.47,0.00010684,2]
[347757300,1736094669657,-500.0,0.00010684,2]
[347757301,1736094669667,-500.0,0.00010684,2]
[347757302,1736094669676,-580.42,0.00010684,2]
[347757303,1736094669687,-500.0,0.00010684,2]
[347757304,1736094669697,-500.0,0.00010684,2]
[347757305,1736094669708,-500.0,0.00010684,2]
[347757306,1736094669717,-520.75,0.00010684,2]
[347757307,1736094669727,-500.0,0.00010684,2]
[347757308,1736094669738,-500.0,0.00010684,2]
[347757309,1736094669748,-1689.29,0.00010684,2]
[347757310,1736094669758,-565.23,0.00010684,2]
[347757311,1736094669768,-589.8,0.00010684,2]
[347757312,1736094669779,-683.29,0.00010684,2]
[347757313,1736094669790,-500.0,0.00010684,2]
[347757314,1736094669800,-1085.9,0.00010684,2]
[347757315,1736094669810,-500.0,0.00010684,2]
[347757316,1736094669820,-500.0,0.00010684,2]
[347757317,1736094669830,-741.9,0.00010684,2]
[347757318,1736094669840,-1035.34,0.00010684,2]
[347757319,1736094669850,-500.0,0.00010684,2]
[347757320,1736094669859,-500.76,0.00010684,2]
[347757321,1736094669870,-271.83752885,0.00010684,2]
[347757322,1736094669879,-500.0,0.00010684,2]
[347757323,1736094669889,-500.0,0.00010684,2]
[347757324,1736094669898,-500.0,0.00010684,2]
[347757325,1736094669908,-500.0,0.00010684,2]
[347757326,1736094669917,-1834.08,0.00010684,2]
[347757327,1736094669927,-500.0,0.00010684,2]
[347757328,1736094669937,-552.82,0.00010684,2]
[347757329,1736094669946,-731.46,0.00010684,2]
[347757330,1736094669957,-446.24534534,0.00010684,2]
[347757331,1736094669967,-500.0,0.00010684,2]
[347757332,1736094669977,-904.93,0.00010684,2]
[347757333,1736094669989,-557.27,0.00010684,2]
[347757334,1736094669999,-793.93,0.00010684,2]
[347757335,1736094670010,-500.0,0.00010684,2]
[347757336,1736094670020,-811.3,0.00010684,2]
[347757337,1736094670031,-527.7,0.00010684,2]
[347757338,1736094670041,-500.0,0.00010684,2]
[347757339,1736094670051,-500.0,0.00010684,2]
[347757340,1736094670061,-1036.67,0.00010684,2]
[347757341,1736094670076,-509.44,0.00010684,2]
[347757342,1736094670086,-500.0,0.00010684,2]
[347757343,1736094670096,-500.0,0.00010684,2]
[347757344,1736094670106,-1405.71,0.00010684,2]
[347757345,1736094670117,-1347.13,0.00010684,2]
[347757346,1736094670127,-1532.82,0.00010684,2]
[347757347,1736094670137,-500.0,0.00010684,2]
[347757348,1736094670148,-500.0,0.00010684,2]
[347757349,1736094670158,-2813.87,0.00010684,2]
[347757350,1736094670168,-799.48,0.00010684,2]
[347757351,1736094670177,-605.75,0.00010684,2]
[347757352,1736094670187,-500.0,0.00010684,2]
[347757353,1736094670197,-659.28,0.00010684,2]
[347757354,1736094670207,-2763.67,0.00010684,2]
[347757355,1736094670216,-500.0,0.00010684,2]
[347757356,1736094670226,-500.0,0.00010684,2]
[347757357,1736094670236,-770.84,0.00010684,2]
[347757358,1736094670246,-589.68,0.00010684,2]
[347757359,1736094670257,-500.0,0.00010684,2]
[347757360,1736094670267,-500.0,0.00010684,2]
[347757361,1736094670277,-3068.98,0.00010684,2]
[347757362,1736094670287,-633.08,0.00010684,2]
[347757363,1736094670298,-779.8,0.00010684,2]
[347757364,1736094670308,-964.94,0.00010684,2]
[347757365,1736094670319,-848.67,0.00010684,2]
[347757366,1736094670329,-1712.37,0.00010684,2]
[347757367,1736094670339,-2292.04,0.00010684,2]
[347757368,1736094670348,-500.0,0.00010684,2]
[347757369,1736094670358,-500.0,0.00010684,2]
[347757370,1736094670368,-504.97,0.00010684,2]
[347757371,1736094670378,-769.22,0.00010684,2]
[347757372,1736094670388,-698.27,0.00010684,2]
[347757373,1736094670398,-800.13,0.00010684,2]
[347757374,1736094670407,-1071.25,0.00010684,2]
[347757375,1736094670420,-500.0,0.00010684,2]
[347757376,1736094670431,-1626.49,0.00010684,2]
[347757377,1736094670440,-1143.16,0.00010684,2]
[347757378,1736094670450,-1089.62,0.00010684,2]
[347757379,1736094670462,-565.51,0.00010684,2]
[347757380,1736094670472,-972.29,0.00010684,2]
[347757381,1736094670481,-1044.39,0.00010684,2]
[347757382,1736094670492,-500.0,0.00010684,2]
[347757383,1736094670502,-500.18,0.00010684,2]
[347757384,1736094670512,-508.44,0.00010684,2]
[347757385,1736094670524,-520.99789127,0.00010684,2]
[347757386,1736094670535,-2154.529193,0.00010684,2]
[347757387,1736094670545,-573.87,0.00010684,2]
[347757388,1736094670554,-160.465046,0.00010684,2]
[347757389,1736094670564,-3065.2,0.00010684,2]
[347757390,1736094670575,-1194.71,0.00010684,2]
[347757391,1736094670584,-585.92,0.00010684,2]
[347757392,1736094670594,-155.826197,0.00010684,2]
[347757393,1736094670604,-500.0,0.00010684,2]
[347757394,1736094670614,-765.52,0.00010684,2]
[347757395,1736094670626,-640.34,0.00010684,2]
[347757396,1736094670636,-3836.73,0.00010684,2]
[347757397,1736094670647,-633.45,0.00010684,2]
[347757398,1736094670657,-1192.98,0.00010684,2]
[347757399,1736094670667,-1291.16,0.00010684,2]
[347757400,1736094670677,-733.94,0.00010684,2]
[347757401,1736094670686,-2011.44575,0.00010684,2]
[347757402,1736094670697,-668.19,0.00010684,2]
[347757403,1736094670707,-722.24,0.00010684,2]
[347757404,1736094670717,-525.52,0.00010684,2]
[347757405,1736094670728,-2191.22,0.00010684,2]
[347757406,1736094670738,-1871.54,0.00010684,2]
[347757407,1736094670748,-3576.39,0.00010684,2]
[347757408,1736094670758,-6128.46,0.00010684,2]
[347757409,1736094670768,-1429.21,0.00010684,2]
[347757410,1736094670778,-554.84,0.00010684,2]
[347757411,1736094670789,-500.0,0.00010684,2]
[347757412,1736094670800,-1747.17,0.00010684,2]
[347757413,1736094670810,-1657.86,0.00010684,2]
[347757414,1736094670819,-813.74,0.00010684,2]
[347757415,1736094670829,-3771.13,0.00010684,2]
[347757416,1736094670839,-515.2,0.00010684,2]
[347757417,1736094670849,-500.0,0.00010684,2]
[347757418,1736094670859,-823.18,0.00010684,2]
[347757419,1736094670868,-902.42,0.00010684,2]
[347757420,1736094670878,-795.93,0.00010684,2]
[347757421,1736094670887,-500.0,0.00010684,2]
[347757422,1736094670897,-710.7,0.00010684,2]
[347757423,1736094670907,-1012.76,0.00010684,2]
[347757424,1736094670916,-890.9,0.00010684,2]
[347757425,1736094670926,-500.0,0.00010684,2]
[347757426,1736094670935,-1433.4,0.00010684,2]
[347757427,1736094670945,-5091.48,0.00010684,2]
[347757428,1736094670957,-4235.77,0.00010684,2]
[347757429,1736094670967,-158.30937,0.00010684,2]
[347757430,1736094670977,-1053.35,0.00010684,2]
[347757431,1736094670987,-992.85,0.00010684,2]
[347757432,1736094670997,-624.79,0.00010684,2]
[347757433,1736094671006,-633.76,0.00010684,2]
[347757434,1736094671016,-578.47,0.00010684,2]
[347757435,1736094671026,-1537.22,0.00010684,2]
[347757436,1736094671035,-2200.96,0.00010684,2]
[347757437,1736094671045,-900.08,0.00010684,2]
[347757438,1736094671055,-4458.65,0.00010684,2]
[347757439,1736094671064,-4463.52,0.00010684,2]
[347757440,1736094671075,-163.360118,0.00010684,2]
[347757441,1736094671085,-1934.39,0.00010684,2]
[347757442,1736094671095,-1315.15,0.00010684,2]
[347757443,1736094671104,-546.5,0.00010684,2]
[347757444,1736094671114,-510.63,0.00010684,2]
[347757445,1736094671124,-500.0,0.00010684,2]
[347757446,1736094671134,-748.91,0.00010684,2]
[347757447,1736094671144,-3147.69,0.00010684,2]
[347757448,1736094671154,-500.0,0.00010684,2]
[347757449,1736094671164,-571.68,0.00010684,2]
[347757450,1736094671174,-500.0,0.00010684,2]
[347757451,1736094671184,-519.79,0.00010684,2]
[347757452,1736094671193,-857.37,0.00010684,2]